bitfinex/quotes_ETHUSD_20241023
["timestamp","ask_amount","ask_price","bid_price","bid_amount"]
[1729707424145,0.01,2473.5,2472.7,0.1207432]
[1729707424146,0.01,2473.0,2472.7,0.1207432]
[1729707424501,0.04256699,2472.9,2472.7,0.1207432]
[1729707425121,0.04256699,2472.9,2472.7,4.1648532]
[1729707425603,0.04256699,2472.9,2472.7,0.1207432]
[1729707426945,0.01,2472.8,2472.7,0.1207432]
[1729707427121,1.6351,2472.8,2472.7,0.1207432]
[1729707427318,1.67681991,2472.8,2472.7,0.1207432]
[1729707428713,5.72080991,2472.8,2472.7,0.1207432]
[1729707428936,1.67681991,2472.8,2472.7,0.1207432]
[1729707431269,5.72080991,2472.8,2472.7,0.1207432]
[1729707431545,1.67681991,2472.8,2472.7,0.1207432]
[1729707431912,0.05171991,2472.8,2472.7,0.1207432]
[1729707432515,0.05171991,2472.8,2472.7,4.1649032]
[1729707433228,0.04907644,2472.8,2472.7,4.1649032]
[1729707433648,0.03907644,2472.8,2472.7,4.1649032]
[1729707434010,0.01,2473.1,2472.8,4.04396]
[1729707434209,0.03907644,2472.8,2472.7,4.1649032]
[1729707434411,0.01,2473.1,2472.8,4.04394]
[1729707434985,0.01,2473.1,2472.7,4.1648132]
[1729707435315,0.01,2473.1,2472.8,4.04392]
[1729707436012,0.01,2473.1,2472.7,0.1207432]
[1729707436356,0.01,2473.1,2472.8,4.04399]
[1729707436519,0.01,2473.1,2472.7,0.1207432]
[1729707436520,0.01,2473.1,2472.7,4.1648932]
[1729707436715,0.01,2473.1,2472.7,0.1207432]
[1729707436954,4.05399,2472.8,2472.7,0.1207432]
[1729707437650,0.04921217,2472.8,2472.7,0.1207432]
[1729707439343,4.09320217,2472.8,2472.7,0.1207432]
[1729707440174,6.23320217,2472.8,2472.7,0.1207432]
[1729707440668,6.22320217,2472.8,2472.7,0.1207432]
[1729707440829,2.17921217,2472.8,2472.7,0.1207432]
[1729707441033,1.62921217,2472.8,2472.7,0.1207432]
[1729707441350,6.22320217,2472.8,2472.7,0.1207432]
[1729707447349,6.23320217,2472.8,2472.7,0.1207432]
[1729707448274,9.23320217,2472.8,2472.7,0.1207432]
[1729707449382,6.23320217,2472.8,2472.7,0.1207432]
[1729707449537,9.23320217,2472.8,2472.7,0.1207432]
[1729707450049,9.23320217,2472.8,2470.2,0.1207432]
[1729707450050,0.01,2470.3,2470.2,0.1207432]
[1729707450582,0.03831608,2470.3,2470.2,0.1207432]
[1729707450934,4.00735,2470.8,2470.2,0.1207432]
[1729707451139,1.5867,2471.1,2470.2,1.6914432]
[1729707451140,0.03831608,2470.3,2470.2,1.6914432]
[1729707451379,0.55,2471.0,2470.2,1.6914432]
[1729707451670,0.01,2471.3,2470.2,1.6914432]
[1729707451671,4.04654,2471.3,2470.3,4.04797]
[1729707452039,4.0468,2471.1,2470.2,1.6914432]
[1729707452237,4.59645,2471.3,2470.3,4.04806]
[1729707452436,4.59645,2471.3,2470.4,0.08095282]
[1729707452437,0.55,2471.3,2470.4,0.08095282]
[1729707452666,0.55,2471.3,2470.2,5.7396732]
[1729707452667,4.0468,2471.1,2470.2,5.7396732]
[1729707452871,4.04673,2471.2,2470.3,4.04804]
[1729707453187,4.04678,2471.1,2470.2,4.6914432]
[1729707453470,4.04678,2471.1,2470.2,8.7396432]
[1729707453685,4.04678,2471.1,2470.3,4.04805]
[1729707453841,4.04678,2471.1,2470.2,8.7395932]
[1729707454043,4.59655,2471.3,2470.4,4.04784]
[1729707454346,4.59655,2471.3,2470.4,4.04781]
[1729707454553,4.0468,2471.1,2470.3,4.12890281]
[1729707454742,4.59655,2471.3,2470.3,4.12890281]
[1729707454940,4.04622,2471.5,2470.7,1.523]
[1729707455161,4.04607,2471.6,2470.8,0.08094419]
[1729707455369,4.04607,2471.6,2470.8,4.12813419]
[1729707455370,8.09214,2471.6,2470.8,4.12813419]
[1729707455547,4.04607,2471.6,2470.8,8.17531419]
[1729707455879,8.5952579,2472.0,2471.2,4.0465]
[1729707455880,9.70718,2472.0,2471.2,4.0465]
[1729707456084,1.6163,2472.0,2471.2,0.55553]
[1729707456266,5.66161,2472.0,2471.2,4.04652]
[1729707456472,5.66161,2472.0,2471.1,1.5088]
[1729707456473,4.0451,2472.2,2471.4,4.0462]
[1729707456648,4.0451,2472.2,2471.4,8.0924]
[1729707456843,4.04516,2472.1,2471.4,4.0462]
[1729707457045,4.04485,2472.3,2471.5,5.5549]
[1729707457248,4.04498,2472.2,2471.5,2.47700194]
[1729707457743,4.04477,2472.4,2471.5,2.47700194]
[1729707457744,4.04483,2472.3,2471.5,6.52299194]
[1729707457969,4.04483,2472.3,2471.5,2.47700194]
[1729707458172,4.04483,2472.3,2471.5,6.52312194]
[1729707458354,4.04499,2472.2,2471.5,6.52312194]
[1729707458561,4.04483,2472.3,2471.5,6.52312194]
[1729707458867,8.08978,2472.3,2471.5,6.52312194]
[1729707459071,4.04501,2472.2,2471.5,6.52312194]
[1729707459365,4.04483,2472.3,2471.5,1.5088]
[1729707459366,0.55,2472.3,2471.5,1.5088]
[1729707459676,4.04518,2472.1,2471.5,1.5088]
[1729707459877,4.04504,2472.2,2471.5,1.5088]
[1729707460091,4.04504,2472.2,2471.5,5.55492]
[1729707460268,4.04482,2472.3,2471.5,5.55481]
[1729707460578,4.04476,2472.4,2471.5,5.55481]
[1729707460579,4.04476,2472.4,2471.6,4.04595]
[1729707460785,4.04507,2472.2,2471.5,6.9987829]
[1729707460986,4.04525,2472.1,2471.5,2.468915]
[1729707461188,0.56,2472.5,2471.5,1.5088]
[1729707461347,4.04555,2471.9,2471.5,1.5088]
[1729707461778,4.59547,2471.9,2471.2,1.5829]
[1729707462045,4.59547,2471.9,2470.6,5.16295956]
[1729707462046,4.04645,2471.3,2470.8,1.5829]
[1729707462648,4.59591,2471.7,2470.8,1.5829]
[1729707462947,4.04557,2471.9,2470.9,4.61080712]
[1729707463152,4.04525,2472.1,2471.3,4.04636]
[1729707463454,4.04525,2472.1,2471.4,4.04628]
[1729707463979,0.55,2472.1,2471.1,4.04664]
[1729707464281,4.04549,2471.9,2471.2,4.04652]
[1729707464484,4.04549,2471.9,2471.1,4.04664]
[1729707464660,4.04564,2471.8,2471.1,4.04664]
[1729707465073,4.04583,2471.7,2471.1,4.04664]
[1729707465384,0.55,2472.1,2471.0,1.647]
[1729707465385,4.04606,2471.6,2471.0,1.647]
[1729707465745,4.04613,2471.5,2471.0,1.647]
[1729707465943,8.09215,2471.6,2471.0,1.647]
[1729707466184,4.04614,2471.5,2471.0,1.647]
[1729707466370,4.04631,2471.4,2471.0,1.647]
[1729707466577,5.55697,2471.7,2471.1,4.04668]
[1729707466882,0.03544382,2471.6,2471.0,1.647]
[1729707467046,0.03544382,2471.6,2471.1,4.0467]
[1729707467450,0.03544382,2471.6,2471.2,4.04658]
[1729707467747,4.04563,2471.8,2471.2,4.04658]
[1729707467748,4.04558,2471.9,2471.3,4.04636]
[1729707467969,0.03573631,2471.5,2471.3,8.09272]
[1729707468170,4.04517,2472.1,2471.3,4.04636]
[1729707468450,4.04532,2472.0,2471.3,4.04636]
[1729707468645,4.08105631,2472.0,2471.3,4.04636]
[1729707469362,4.08105631,2472.0,2471.4,4.04626]
[1729707469659,4.04572,2471.8,2471.1,4.04667]
[1729707470183,0.03578391,2471.7,2471.2,4.04659]
[1729707470477,0.55,2471.9,2471.0,5.69384]
[1729707470646,0.03578391,2471.6,2471.0,5.69384]
[1729707470846,4.04587,2471.7,2471.1,4.04675]
[1729707471148,0.03578391,2471.5,2471.2,4.0466]
[1729707471368,4.04557,2471.9,2471.2,4.04653]
[1729707471575,4.04557,2471.9,2471.1,1.42704579]
[1729707471576,4.04557,2471.9,2471.3,4.04637]
[1729707471850,0.03578391,2471.8,2471.3,4.04637]
[1729707472052,4.04557,2471.9,2471.4,4.04628]
[1729707472247,8.09117,2471.9,2471.3,4.04637]
[1729707472687,4.04557,2471.9,2471.4,4.04627]
[1729707473364,4.04557,2471.9,2471.3,4.04635]
[1729707473944,8.09118,2471.9,2471.3,4.04635]
[1729707474249,4.04598,2471.6,2471.0,5.69386]
[1729707474491,4.04649,2471.3,2470.7,1.5222]
[1729707474789,4.04679,2471.1,2470.7,1.5222]
[1729707475159,8.09307,2471.3,2470.7,1.5222]
[1729707475382,4.04672,2471.2,2470.7,1.5222]
[1729707475576,4.04679,2471.1,2470.7,1.5222]
[1729707475950,4.59641,2471.4,2470.7,5.56962]
[1729707476377,4.04657,2471.3,2470.7,5.56962]
[1729707476589,4.04664,2471.2,2470.7,5.56962]
[1729707476794,4.04596,2471.6,2470.9,4.5298679]
[1729707476951,4.04614,2471.5,2471.0,4.04686]
[1729707477301,4.04583,2471.7,2471.2,4.04651]
[1729707477463,4.04563,2471.8,2471.0,4.04692]
[1729707477674,4.04596,2471.6,2471.1,4.04669]
[1729707477856,8.09137,2471.8,2471.2,4.0465]
[1729707478050,4.04559,2471.9,2471.3,5.68869]
[1729707478277,4.04559,2471.9,2471.3,1.6424]
[1729707478477,1.6252,2472.0,2470.9,4.5298679]
[1729707478478,4.04603,2471.6,2471.0,4.04683]
[1729707478794,4.04584,2471.7,2471.2,4.0466]
[1729707478961,4.04584,2471.7,2470.9,6.1722679]
[1729707478962,4.04584,2471.7,2471.1,4.04676]
[1729707479165,4.04597,2471.6,2471.1,4.04676]
[1729707479366,4.04584,2471.7,2471.2,4.04655]
[1729707480386,4.59563,2471.8,2471.2,4.04652]
[1729707480567,4.046,2471.6,2471.1,4.04678]
[1729707480767,4.04574,2471.8,2471.3,4.04644]
[1729707481067,4.0458,2471.7,2471.3,4.04644]
[1729707481257,4.04597,2471.6,2471.1,4.04664]
[1729707481789,4.0458,2471.7,2471.2,4.04652]
[1729707481991,4.0458,2471.7,2471.1,4.04664]
[1729707481992,4.04564,2471.8,2471.3,4.04645]
[1729707482171,4.59552,2471.9,2470.9,6.1722679]
[1729707482172,4.04587,2471.7,2470.9,6.1722679]
[1729707482507,4.04617,2471.5,2471.0,4.04694]
[1729707482793,4.04575,2471.8,2470.9,6.1722679]
[1729707483090,0.55,2471.9,2471.2,4.04661]
[1729707483391,4.04588,2471.7,2471.2,4.04661]
[1729707483552,4.0463,2471.4,2470.9,5.6895]
[1729707483776,4.04646,2471.3,2470.9,1.6424]
[1729707483989,4.04646,2471.3,2470.7,4.04743]
[1729707483990,4.04665,2471.2,2470.7,4.04743]
[1729707484502,4.04688,2471.1,2470.6,6.1436679]
[1729707484786,1.5503,2471.4,2470.7,4.04733]
[1729707484787,5.59665,2471.4,2470.7,4.04733]
[1729707484952,4.04599,2471.6,2471.1,4.04674]
[1729707485300,0.55,2471.9,2471.4,4.04614]
[1729707485301,4.04555,2471.9,2471.4,4.04614]
[1729707486297,4.04505,2472.2,2471.6,4.04585]
[1729707486498,4.04505,2472.2,2471.2,10.1635679]
[1729707486499,4.04518,2472.1,2471.5,8.5759079]
[1729707486794,8.09017,2472.2,2471.6,4.04595]
[1729707486996,8.09017,2472.2,2471.5,8.5759079]
[1729707486997,4.04539,2472.0,2471.4,4.04616]
[1729707487165,8.09082,2472.0,2471.4,4.04616]
[1729707487499,4.04508,2472.2,2471.5,4.04603]
[1729707487758,4.59526,2472.1,2471.5,4.04603]
[1729707488059,1.5384,2472.3,2471.5,4.5298679]
[1729707488260,0.55,2472.7,2472.3,4.04472]
[1729707488418,0.55,2472.7,2472.3,1.5871]
[1729707488419,4.59421,2472.7,2472.3,1.5871]
[1729707488620,0.55,2472.7,2472.3,1.5871]
[1729707489541,0.55,2472.7,2472.0,4.04516]
[1729707489542,4.04443,2472.6,2472.0,4.04516]
[1729707489714,4.04443,2472.6,2471.3,4.04635]
[1729707489715,4.04573,2471.8,2471.3,4.04635]
[1729707489916,4.04541,2472.0,2471.4,4.04628]
[1729707490642,4.04515,2472.1,2471.4,4.04628]
[1729707490816,4.04515,2472.1,2471.6,5.62715]
[1729707490817,8.09042,2472.1,2471.6,5.62715]
[1729707491014,4.04515,2472.1,2471.6,5.62715]
[1729707491215,4.04492,2472.3,2471.7,4.04568]
[1729707491621,4.04465,2472.4,2471.8,4.04563]
[1729707491818,4.0444,2472.6,2472.0,8.09041]
[1729707492124,4.04571,2471.8,2471.2,4.04647]
[1729707492319,4.04597,2471.6,2471.0,4.04682]
[1729707492521,4.04597,2471.6,2471.1,4.04666]
[1729707492730,4.04571,2471.8,2471.1,4.04666]
[1729707492958,4.04584,2471.7,2471.1,4.04666]
[1729707493167,4.04542,2472.0,2471.5,4.04611]
[1729707493325,8.09021,2472.2,2471.6,4.0459]
[1729707493524,4.04514,2472.1,2471.6,4.0459]
[1729707493758,4.04514,2472.1,2471.3,1.5812]
[1729707493759,4.04549,2471.9,2471.3,9.6739]
[1729707493921,0.55,2472.2,2471.3,1.5812]
[1729707494132,4.04542,2472.0,2471.4,4.04619]
[1729707494636,4.5298679,2472.7,2470.4,4.04787]
[1729707494637,1.5008,2471.3,2470.4,4.04787]
[1729707494821,4.04661,2471.2,2470.2,6.2551111]
[1729707495020,5.54739,2471.3,2470.6,4.04751]
[1729707495265,4.0463,2471.4,2470.8,4.5298679]
[1729707495449,4.04676,2471.2,2470.6,4.04749]
[1729707495623,4.04672,2471.2,2470.6,4.04749]
[1729707495819,8.0928,2471.4,2470.6,4.04749]
[1729707496025,4.04665,2471.2,2470.6,4.04749]
[1729707496323,4.04665,2471.2,2470.2,0.1207432]
[1729707496324,0.55,2471.0,2470.2,0.1207432]
[1729707496561,4.04777,2470.5,2470.2,0.1207432]
[1729707496831,1.6303,2470.9,2470.2,0.1207432]
[1729707496832,4.04769,2470.6,2470.2,0.1207432]
[1729707497168,4.04786,2470.5,2470.2,0.1207432]
[1729707497335,4.04769,2470.6,2470.2,0.1207432]
[1729707497660,4.04789,2470.5,2470.2,0.1207432]
[1729707498171,4.04809,2470.3,2470.2,0.1207432]
[1729707498472,1.6303,2470.9,2470.2,0.1207432]
[1729707498473,4.04762,2470.6,2470.2,0.1207432]
[1729707498655,4.59809,2470.3,2470.2,0.1207432]
[1729707498825,9.21499,2470.3,2470.2,3.2e-06]
[1729707499543,9.21499,2470.3,2468.5,4.05093]
[1729707499544,5.02104,2469.3,2468.5,4.05096]
[1729707499839,4.04947,2469.5,2468.9,4.05037]
[1729707500036,4.04927,2469.6,2468.9,4.05028]
[1729707500360,4.05005,2469.1,2468.3,4.05126]
[1729707500527,0.9712,2469.2,2468.3,4.05126]
[1729707500528,4.05048,2468.9,2468.3,4.05126]
[1729707500724,4.05056,2468.8,2468.1,4.0516]
[1729707500929,4.0513,2468.4,2467.8,1.5133]
[1729707501231,1.6175,2469.1,2467.9,4.5298679]
[1729707501435,4.051,2468.6,2468.0,4.0517]
[1729707501829,4.05098,2468.6,2468.0,4.0517]
[1729707502029,4.05098,2468.6,2467.8,5.60209]
[1729707502030,4.05124,2468.4,2467.8,5.60209]
[1729707502272,4.05124,2468.4,2467.7,0.1207432]
[1729707502273,5.59374,2468.4,2467.7,0.1207432]
[1729707502635,4.05172,2468.1,2467.7,0.1207432]
[1729707503082,4.05113,2468.5,2467.8,1.6352]
[1729707503469,4.05113,2468.5,2467.9,4.05193]
[1729707504059,4.05113,2468.5,2468.0,4.05185]
[1729707504239,1.5425,2468.7,2468.0,5.5037659]
[1729707504439,1.5425,2469.4,2468.6,5.68607]
[1729707504640,1.5425,2469.4,2468.8,4.05052]
[1729707504941,1.5425,2469.8,2468.6,6.1650679]
[1729707505146,4.04934,2469.6,2468.9,4.05033]
[1729707505373,8.09868,2469.6,2468.9,4.05029]
[1729707505538,1.5425,2469.8,2468.6,10.2259179]
[1729707505739,5.59059,2470.3,2469.6,4.0491]
[1729707505983,4.04784,2470.5,2469.8,4.04887]
[1729707506165,8.5770179,2470.9,2469.6,4.04913]
[1729707506166,1.5525,2470.6,2469.6,4.04913]
[1729707506392,1.5293,2470.1,2468.4,0.01]
[1729707506607,1.5293,2470.1,2468.0,3.37390308]
[1729707506608,4.05019,2469.1,2468.3,4.05126]
[1729707506777,1.5293,2469.2,2468.3,4.05126]
[1729707506778,4.05056,2468.8,2468.3,4.05126]
[1729707506977,1.5293,2469.2,2468.0,2.552598]
[1729707507219,4.05075,2468.7,2468.1,4.05169]
[1729707507371,4.05075,2468.7,2468.1,8.1033]
[1729707507567,0.01,2469.1,2468.0,1.5787]
[1729707507568,4.05017,2469.1,2468.3,4.05133]
[1729707508083,4.05017,2469.1,2468.5,4.05103]
[1729707508707,4.04948,2469.5,2468.8,4.05045]
[1729707508879,8.099,2469.5,2468.8,6.02199658]
[1729707509072,4.04948,2469.5,2468.8,5.60885]
[1729707509584,1.5494,2469.7,2468.3,4.05135]
[1729707509585,4.04923,2469.6,2468.3,1.5584]
[1729707509781,4.04988,2469.3,2468.7,4.05062]
[1729707509991,4.04988,2469.3,2468.5,4.05094]
[1729707509992,4.04941,2469.5,2468.5,4.05104]
[1729707510194,4.04941,2469.5,2468.9,4.05022]
[1729707510367,4.04941,2469.5,2469.0,4.0502]
[1729707510573,4.04883,2469.9,2469.2,4.04985]
[1729707510768,4.04883,2469.9,2469.0,1.5342]
[1729707510769,1.6499,2470.0,2469.0,1.5342]
[1729707511099,1.6599,2470.0,2468.8,4.0504]
[1729707511296,4.05017,2469.1,2468.6,1.6122]
[1729707511606,4.05017,2469.1,2468.1,5.66388]
[1729707511607,8.1001,2469.1,2468.1,5.66388]
[1729707511911,8.1001,2469.1,2468.1,5.66377]
[1729707511912,4.05081,2468.7,2468.1,5.66377]
[1729707512070,8.10097,2468.9,2468.3,4.05126]
[1729707512275,1.5759,2469.2,2468.2,4.05153]
[1729707512276,0.55,2469.0,2468.2,4.0514]
[1729707512512,4.05083,2468.7,2468.1,1.6122]
[1729707512804,4.05083,2468.7,2468.0,4.05182]
[1729707512805,4.05098,2468.6,2468.0,4.05176]
[1729707513005,4.05083,2468.7,2468.1,4.05161]
[1729707513305,4.05083,2468.7,2467.7,6.95097465]
[1729707513306,4.05083,2468.7,2468.2,4.05139]
[1729707513613,4.05083,2468.7,2468.1,4.05159]
[1729707513923,4.05115,2468.5,2467.9,4.05194]
[1729707514210,4.05122,2468.4,2467.8,4.05209]
[1729707514509,4.05115,2468.5,2467.7,5.8370132]
[1729707514510,4.05139,2468.3,2467.7,5.8370132]
[1729707514678,1.5726,2468.5,2467.7,5.8370132]
[1729707514679,4.05195,2468.0,2467.7,0.1207432]
[1729707514875,4.05162,2468.2,2467.7,0.1207432]
[1729707514876,4.05162,2468.2,2467.7,4.1730032]
[1729707515394,4.05171,2468.1,2467.7,0.1207432]
[1729707515600,4.0513,2468.4,2467.7,0.1207432]
[1729707515976,4.05154,2468.2,2467.7,4.1730832]
[1729707516513,0.55,2467.8,2467.7,0.1207432]
[1729707516816,4.60219,2467.8,2467.7,0.1207432]
[1729707517374,4.05207,2467.9,2467.7,0.1207432]
[1729707517571,4.60134,2468.4,2467.8,4.05206]
[1729707517771,4.60134,2468.4,2467.7,0.1207432]
[1729707517772,4.05166,2468.2,2467.7,0.1207432]
[1729707517972,4.05171,2468.1,2467.7,0.1207432]
[1729707518276,0.55,2468.4,2467.8,4.05205]
[1729707518484,4.05179,2468.1,2467.7,0.1207432]
[1729707519096,4.05218,2467.9,2467.7,0.1207432]
[1729707519297,4.05196,2468.0,2467.7,0.1207432]
[1729707519522,4.05203,2467.9,2467.7,0.1207432]
[1729707519691,8.10395,2468.0,2467.7,0.1207432]
[1729707519877,4.05196,2468.0,2467.7,0.1207432]
[1729707520416,4.0517,2468.1,2467.7,0.1207432]
[1729707520610,4.05161,2468.2,2467.7,0.1207432]
[1729707520785,4.0513,2468.4,2467.8,4.05207]
[1729707520989,4.0513,2468.4,2467.7,4.1729532]
[1729707520990,4.05164,2468.2,2467.7,4.1729532]
[1729707521194,4.05129,2468.4,2467.9,4.05196]
[1729707521588,1.5726,2468.5,2467.9,4.05196]
[1729707521790,4.05126,2468.4,2467.9,4.05196]
[1729707522403,4.05126,2468.4,2467.9,4.05194]
[1729707522627,4.05098,2468.6,2467.8,4.05219]
[1729707522800,4.06013,2469.1,2468.0,4.05175]
[1729707522801,1.5627,2469.1,2468.0,4.05175]
[1729707522980,4.0514,2468.3,2467.8,9.67017]
[1729707523185,4.0514,2468.3,2467.7,0.1207432]
[1729707523186,4.05151,2468.3,2467.7,0.1207432]
[1729707523407,4.05151,2468.3,2467.8,4.05218]
[1729707523591,4.0513,2468.4,2467.8,4.05203]
[1729707523793,4.05112,2468.5,2467.8,4.05219]
[1729707524129,0.55,2468.5,2467.7,4.1730132]
[1729707524335,4.60144,2468.3,2467.8,4.05218]
[1729707524492,4.05109,2468.5,2467.7,0.1207432]
[1729707524693,1.5627,2468.8,2467.7,4.1730632]
[1729707525019,8.10292,2468.3,2467.8,4.05215]
[1729707525203,4.5627,2468.8,2467.7,0.1207432]
[1729707525204,0.55,2468.1,2467.7,0.1207432]
[1729707525420,0.55,2468.1,2467.7,4.1730832]
[1729707525620,4.05114,2468.5,2468.0,4.05185]
[1729707525927,4.05114,2468.5,2467.7,1.09989652]
[1729707525928,4.0514,2468.3,2467.8,8.10418]
[1729707526089,0.55,2468.5,2468.1,4.05161]
[1729707526418,0.55,2468.5,2467.9,4.05192]
[1729707526614,4.60104,2468.5,2468.0,4.05177]
[1729707526815,0.55,2468.5,2468.0,4.05177]
[1729707527036,4.05072,2468.7,2468.2,1.6471]
[1729707527184,4.05137,2468.3,2467.9,1.6295]
[1729707527385,1.5627,2468.8,2467.7,4.1730632]
[1729707527386,4.05167,2468.2,2467.7,4.1730632]
[1729707527632,4.05195,2468.0,2467.7,0.1207432]
[1729707528121,1.5627,2468.8,2467.8,4.05219]
[1729707528122,3.4925,2468.6,2467.8,4.05219]
[1729707528422,1.5627,2468.8,2467.7,4.1730232]
[1729707528423,4.05164,2468.2,2467.7,4.1730232]
[1729707528593,4.05134,2468.4,2467.8,4.05206]
[1729707528794,4.05149,2468.3,2467.8,4.05206]
[1729707529194,4.60133,2468.4,2467.7,4.1730832]
[1729707529399,4.60122,2468.4,2467.7,4.1730332]
[1729707529746,1.5627,2468.8,2467.7,0.1207432]
[1729707529747,4.05117,2468.5,2467.7,0.1207432]
[1729707530038,1.5627,2468.8,2467.8,4.05211]
[1729707530222,4.05133,2468.4,2467.8,4.05205]
[1729707530541,4.051,2468.6,2468.0,4.05174]
[1729707530542,8.10193,2468.6,2468.0,4.05174]
[1729707530710,4.05099,2468.6,2468.0,4.05177]
[1729707531034,4.05107,2468.5,2468.0,4.05177]
[1729707531335,4.05106,2468.5,2468.0,4.05177]
[1729707531539,4.05099,2468.6,2468.0,4.05177]
[1729707531540,4.05099,2468.6,2468.1,4.05162]
[1729707531725,4.60072,2468.7,2468.2,4.05146]
[1729707531906,4.05091,2468.6,2468.1,4.05168]
[1729707532242,1.5627,2468.8,2468.1,0.810343]
[1729707532450,1.6177,2469.1,2468.4,1.5375]
[1729707532669,4.54553093,2469.6,2468.8,4.05047]
[1729707532670,4.04975,2469.3,2468.8,4.05047]
[1729707533002,5.66721,2469.5,2468.9,4.05031]
[1729707533216,4.04892,2469.8,2469.3,4.0497]
[1729707533507,5.63757,2469.9,2468.6,5.69287]
[1729707533508,1.5888,2469.9,2469.4,4.04954]
[1729707533808,4.04859,2470.0,2469.4,8.59493093]
[1729707534119,8.09696,2470.1,2469.6,4.04916]
[1729707534315,4.04843,2470.1,2469.4,4.54553093]
[1729707534525,4.04843,2470.1,2469.6,4.04908]
[1729707534721,1.5888,2470.3,2469.7,8.59457093]
[1729707534924,4.04784,2470.5,2470.0,4.54553093]
[1729707535105,6.05853795,2470.7,2469.0,4.05021]
[1729707535106,6.05853795,2470.7,2470.3,4.54553093]
[1729707535301,0.42228795,2470.7,2470.3,4.54553093]
[1729707535502,4.04767,2470.6,2470.3,4.54553093]
[1729707535831,5.63583,2471.0,2470.4,4.04791]
[1729707535832,4.04713,2470.9,2470.4,4.04791]
[1729707536020,4.04713,2470.9,2470.3,8.59346093]
[1729707536418,4.04713,2470.9,2470.0,5.16252215]
[1729707536623,1.5474,2471.4,2470.5,5.16252215]
[1729707536824,1.5474,2471.4,2470.7,4.04732]
[1729707537155,4.04627,2471.5,2470.6,4.04759]
[1729707537456,4.04589,2471.7,2471.1,5.62608]
[1729707538120,4.04605,2471.6,2471.1,1.5794]
[1729707538445,4.04589,2471.7,2471.1,5.62614]
[1729707538748,4.04589,2471.7,2471.1,5.62606]
[1729707539037,4.04597,2471.6,2471.1,5.62606]
[1729707539654,8.09178,2471.7,2471.1,5.62606]
[1729707539945,1.5474,2472.0,2471.1,5.62606]
[1729707540181,4.04605,2471.6,2471.1,1.5794]
[1729707540322,4.04631,2471.4,2471.1,1.5794]
[1729707540859,4.04663,2471.2,2470.8,1.5772]
[1729707541014,4.04678,2471.1,2470.8,1.5772]
[1729707541213,4.04705,2471.0,2470.8,1.5772]
[1729707541415,4.04839,2470.2,2469.5,1.5772]
[1729707541737,4.04839,2470.2,2469.5,5.62651]
[1729707541738,4.04835,2470.2,2469.5,5.62651]
[1729707541936,4.04876,2469.9,2469.5,1.5772]
[1729707542448,4.04876,2469.9,2469.2,1.63]
[1729707542672,4.04876,2469.9,2469.3,4.04961]
[1729707542955,4.04876,2469.9,2469.3,4.617571]
[1729707543155,0.01,2470.6,2468.9,0.08098709]
[1729707543156,4.04943,2469.5,2468.9,0.08098709]
[1729707543309,4.04943,2469.5,2468.5,0.01]
[1729707543310,4.05002,2469.2,2468.4,5.6811]
[1729707543510,4.05023,2469.0,2468.4,5.6811]
[1729707543847,4.05023,2469.0,2468.5,4.05103]
[1729707544147,4.05023,2469.0,2468.4,1.63]
[1729707544148,4.05039,2468.9,2468.4,1.63]
[1729707544324,4.05055,2468.8,2468.4,1.63]
[1729707544521,4.05089,2468.6,2467.9,1.63]
[1729707544723,4.0513,2468.4,2468.0,1.08446921]
[1729707545111,0.55,2469.4,2468.0,6.24699136]
[1729707545308,0.55,2469.4,2468.1,4.05158]
[1729707545309,4.05069,2468.8,2468.1,4.05158]
[1729707545546,4.051,2468.6,2468.0,1.08446921]
[1729707545734,4.051,2468.6,2467.9,1.63]
[1729707545735,4.051,2468.6,2467.9,5.6819]
[1729707545923,4.05112,2468.5,2467.9,5.6819]
[1729707546128,4.051,2468.6,2468.0,4.05185]
[1729707546129,4.05097,2468.6,2468.0,4.05185]
[1729707546440,4.05096,2468.6,2468.0,4.13287065]
[1729707546751,8.10136,2468.8,2468.1,4.05169]
[1729707546914,4.05076,2468.7,2468.1,0.98146106]
[1729707547113,4.05103,2468.6,2468.1,0.98146106]
[1729707547417,4.0505,2468.9,2468.2,0.08102734]
[1729707547638,4.05089,2468.6,2468.0,4.05177]
[1729707547886,4.05065,2468.8,2468.0,4.05177]
[1729707547887,4.05032,2469.0,2468.3,4.05134]
[1729707548088,4.05032,2469.0,2468.3,4.05128]
[1729707548288,4.05032,2469.0,2468.3,4.05124]
[1729707548476,4.0506,2468.8,2468.3,4.05124]
[1729707548792,4.05033,2469.0,2468.0,5.16252215]
[1729707548995,4.05047,2468.9,2468.3,4.05126]
[1729707549198,4.05081,2468.7,2468.1,4.05161]
[1729707549357,4.05066,2468.8,2468.1,4.05161]
[1729707549558,4.05066,2468.8,2468.2,4.05144]
[1729707549754,4.04999,2469.2,2468.2,0.08102532]
[1729707550063,4.04999,2469.2,2468.6,4.05086]
[1729707550371,1.6465,2469.4,2468.6,0.405086]
[1729707550553,4.04956,2469.4,2468.9,4.05026]
[1729707550754,1.5966,2469.7,2468.8,0.08100461]
[1729707550953,1.5966,2469.7,2468.7,4.0506]
[1729707550954,4.04949,2469.5,2468.7,4.0506]
[1729707551197,4.04949,2469.5,2468.8,4.05053]
[1729707551405,4.04949,2469.5,2468.9,4.05027]
[1729707551689,4.04958,2469.4,2469.0,0.81008]
[1729707551888,4.04958,2469.4,2468.8,4.05043]
[1729707551889,4.04975,2469.3,2468.8,4.05043]
[1729707552096,4.04958,2469.4,2468.8,4.05043]
[1729707552391,4.04933,2469.6,2468.3,4.05127]
[1729707552392,4.05051,2468.9,2468.3,4.05127]
[1729707552616,4.05065,2468.8,2468.2,8.10286]